fUST/lending_fUST_20240723
["ID","MTS","AMOUNT","RATE_DAILY","PERIOD"]
[332910260,1721675457664,-1320.34,0.00016438,2]
[332910261,1721675457675,-744.8,0.00016438,2]
[332910262,1721675457686,-1724.01,0.00016438,2]
[332910263,1721675457697,-500.0,0.00016438,2]
[332910264,1721675457707,-1333.01,0.00016438,2]
[332910265,1721675457717,-500.0,0.00016438,2]
[332910266,1721675457728,-504.86,0.00016438,2]
[332910267,1721675457739,-531.31,0.00016438,2]
[332910268,1721675457751,-2564.77,0.00016438,2]
[332910269,1721675457762,-503.98,0.00016438,2]
[332910270,1721675457772,-1473.72,0.00016438,2]
[332910271,1721675457782,-500.0,0.00016438,2]
[332910272,1721675457792,-579.86,0.00016438,2]
[332910273,1721675457803,-674.71,0.00016438,2]
[332910274,1721675457814,-1005.89,0.00016438,2]
[332910275,1721675457825,-500.0,0.00016438,2]
[332910276,1721675457835,-500.0,0.00016438,2]
[332910277,1721675457846,-1341.62,0.00016438,2]
[332910278,1721675457857,-1204.73,0.00016438,2]
[332910279,1721675457867,-12941.36,0.00016438,2]
[332910280,1721675457877,-1907.18,0.00016438,2]
[332910281,1721675457889,-500.0,0.00016438,2]
[332910282,1721675457900,-3689.8,0.00016438,2]
[332910283,1721675457912,-500.0,0.00016438,2]
[332910284,1721675457922,-500.0,0.00016438,2]
[332910285,1721675457933,-1624.15,0.00016438,2]
[332910286,1721675457944,-3041.94,0.00016438,2]
[332910287,1721675457955,-1054.8,0.00016438,2]
[332910288,1721675457965,-2090.47,0.00016438,2]
[332910289,1721675457976,-1806.74,0.00016438,2]
[332910290,1721675457987,-2202.13,0.00016438,2]
[332910291,1721675458000,-500.0,0.00016438,2]
[332910292,1721675458010,-500.0,0.00016438,2]
[332910293,1721675458020,-2213.48,0.00016438,2]
[332910294,1721675458032,-4016.4,0.00016438,2]
[332910295,1721675458195,-500.0,0.00016438,2]
[332910296,1721675458205,-500.0,0.00016438,2]
[332910297,1721675458214,-500.0,0.00016438,2]
[332910298,1721675458225,-2197.7,0.00016438,2]
[332910299,1721675458235,-1723.55,0.00016438,2]
[332910300,1721675458246,-500.0,0.00016438,2]
[332910301,1721675458255,-5397.5,0.00016438,2]
[332910302,1721675458265,-652.01,0.00016438,2]
[332910303,1721675458275,-1092.54,0.00016438,2]
[332910304,1721675458284,-993.63,0.00016438,2]
[332910305,1721675458295,-917.62,0.00016438,2]
[332910306,1721675458304,-500.0,0.00016438,2]
[332910307,1721675458314,-716.45,0.00016438,2]
[332910308,1721675458324,-4132.02,0.00016438,2]
[332910309,1721675458335,-500.0,0.00016438,2]
[332910310,1721675458344,-2222.11,0.00016438,2]
[332910311,1721675458354,-818.39,0.00016438,2]
[332910312,1721675458365,-935.93,0.00016438,2]
[332910313,1721675458375,-7400.98,0.00016438,2]
[332910314,1721675458386,-500.0,0.00016438,2]
[332910315,1721675458396,-930.77,0.00016438,2]
[332910316,1721675458407,-500.0,0.00016438,2]
[332910317,1721675458416,-734.72,0.00016438,2]
[332910318,1721675458426,-500.0,0.00016438,2]
[332910319,1721675458435,-500.0,0.00016438,2]
[332910320,1721675458444,-1669.97,0.00016438,2]
[332910321,1721675458454,-850.61,0.00016438,2]
[332910322,1721675458463,-552.12,0.00016438,2]
[332910323,1721675458473,-500.0,0.00016438,2]
[332910324,1721675458483,-930.18,0.00016438,2]
[332910325,1721675458492,-500.0,0.00016438,2]
[332910326,1721675458503,-55.02744773,0.00016438,2]
[332910327,1721675459547,-488.59552143,0.00013698,2]
[332910328,1721675459557,-500.0,0.00013971,2]
[332910329,1721675459566,-365.86858893,0.00013971,2]
[332910330,1721675459576,-500.0,0.00013971,2]
[332910331,1721675459585,-500.0,0.00013971,2]
[332910332,1721675459594,-500.0,0.00013971,2]
[332910333,1721675459603,-499.82205601,0.00013971,2]
[332910334,1721675459613,-500.0,0.00013971,2]
[332910335,1721675459622,-500.0,0.00013971,2]
[332910336,1721675459631,-500.0,0.00013971,2]
[332910337,1721675459640,-500.0,0.00013971,2]
[332910338,1721675459649,-500.0,0.00013971,2]
[332910339,1721675459659,-500.0,0.00013971,2]
[332910340,1721675459669,-500.0,0.00013971,2]
[332910341,1721675459678,-500.0,0.00013971,2]
[332910342,1721675459687,-500.0,0.00013971,2]
[332910343,1721675459696,-248.55592852,0.00014424,2]
[332910344,1721675459705,-1027.71255227,0.00016438,2]
[332910345,1721675459715,-1077.15,0.00016438,2]
[332910346,1721675459725,-2665.28,0.00016438,2]
[332910347,1721675459734,-1492.38,0.00016438,2]
[332910348,1721675459744,-500.0,0.00016438,2]
[332910349,1721675459755,-1243.77897006,0.00016438,2]
[332910350,1721675459789,-134.24102994,0.00016438,2]
[332910351,1721675459798,-1450.96,0.00016438,2]
[332910352,1721675459808,-500.0,0.00016438,2]
[332910353,1721675459818,-500.0,0.00016438,2]
[332910354,1721675459827,-500.0,0.00016438,2]
[332910355,1721675459837,-559.28,0.00016438,2]
[332910356,1721675459846,-776.21,0.00016438,2]
[332910357,1721675459856,-508.21,0.00016438,2]
[332910358,1721675459866,-722.53,0.00016438,2]
[332910359,1721675459879,-1011.22,0.00016438,2]
[332910360,1721675459889,-500.0,0.00016438,2]
[332910361,1721675459899,-521.74,0.00016438,2]
[332910362,1721675459909,-1538.99,0.00016438,2]
[332910363,1721675459918,-1744.99,0.00016438,2]
[332910364,1721675459928,-500.0,0.00016438,2]
[332910365,1721675459938,-10125.34,0.00016438,2]
[332910366,1721675459948,-923.66,0.00016438,2]
[332910367,1721675459957,-767.77,0.00016438,2]
[332910368,1721675459968,-4491.18,0.00016438,2]
[332910369,1721675459978,-1883.32,0.00016438,2]
[332910370,1721675459987,-556.62,0.00016438,2]
[332910371,1721675459997,-500.0,0.00016438,2]
[332910372,1721675460006,-500.0,0.00016438,2]
[332910373,1721675460016,-710.76,0.00016438,2]
[332910374,1721675460026,-3281.33,0.00016438,2]
[332910375,1721675460037,-763.56,0.00016438,2]
[332910376,1721675460046,-638.5,0.00016438,2]
[332910377,1721675460055,-4482.68,0.00016438,2]
[332910378,1721675460065,-644.61,0.00016438,2]
[332910379,1721675460075,-850.61,0.00016438,2]
[332910380,1721675460085,-648.14,0.00016438,2]
[332910381,1721675460097,-2313.44,0.00016438,2]
[332910382,1721675460107,-1229.93,0.00016438,2]
[332910383,1721675460116,-108.5741335,0.00016438,2]
[332910384,1721675460431,-3.34518189,0.00013698,2]
[332910385,1721675460443,-496.65481811,0.00013698,2]
[332910386,1721675460453,-500.0,0.00013971,2]
[332910387,1721675460464,-442.08896491,0.00013971,2]
[332910388,1721675460473,-500.0,0.00013971,2]
[332910389,1721675460483,-500.0,0.00013971,2]
[332910390,1721675460492,-500.0,0.00013971,2]
[332910391,1721675460502,-500.0,0.00013972,2]
[332910392,1721675460511,-641.10652606,0.00016438,2]
[332910393,1721675460523,-520.430295,0.00016438,2]
[332910394,1721675460657,-1876.25178775,0.00016438,2]
[332910395,1721675463797,1000.0,9.878e-05,2]
[332910396,1721675463848,1000.0,9.851e-05,2]
[332910397,1721675463908,101.71670868,9.727e-05,2]
[332910415,1721675953568,-300.0,9.629e-05,2]
[332910416,1721675953600,-300.0,9.726e-05,2]
[332910417,1721675953633,-754.71670868,9.727e-05,2]
[332910418,1721675953645,-143.56658264,9.727e-05,2]
[332910419,1721675953654,-156.43341736,9.727e-05,2]
[332910420,1721675953666,-300.0,9.727e-05,2]
[332910421,1721675953678,-898.28329132,9.727e-05,2]
[332910422,1721675979200,-774.0,9.53e-05,2]
[332910424,1721676019865,-300.0,9.529e-05,2]
[332910425,1721676019899,-300.0,9.529e-05,2]
[332910426,1721676019977,-68.28329132,9.53e-05,2]
[332910427,1721676066627,-252.82935125,9.43e-05,2]
[332910428,1721676066661,-94.3412975,9.529e-05,2]
[332910429,1721676066696,-205.6587025,9.529e-05,2]
[332910430,1721676098551,-250.0,9.478e-05,2]
[332910431,1721676098587,-1.0,9.529e-05,2]
[332910436,1721676200666,150.869311,0.00022,30]
[332910437,1721676236410,500.0,9.027e-05,2]
[332910439,1721676342141,-524.821297,8.139e-05,2]
[332910440,1721676342162,-524.821297,8.221e-05,2]
[332910441,1721676342182,-599.66003117,8.722e-05,2]
[332910442,1721676345278,524.821297,8.058e-05,2]
[332910450,1721676413850,154.82195475,8.058e-05,2]
[332910451,1721676414404,612.43288594,8.058e-05,2]
[332910452,1721676415264,207.92386231,8.058e-05,2]
[332910453,1721676425104,-300.0,8.057e-05,2]
[332910454,1721676425126,-300.0,8.057e-05,2]
[332910455,1721676425148,-1417.5373024,8.058e-05,2]
[332910456,1721676425169,-19442.92605809,8.058e-05,2]
[332910457,1721676425191,-4707.50365433,8.058e-05,2]
[332910458,1721676425212,-154.71377951,8.058e-05,2]
[332910459,1721676425235,-2105.76943121,8.058e-05,2]
[332910460,1721676425256,-3781.68915549,8.058e-05,2]
[332910461,1721676425279,-154.82195475,8.058e-05,2]
[332910462,1721676425300,-218.11782057,8.058e-05,2]
[332910463,1721676425486,-2376.5811404,8.119e-05,2]
[332910464,1721676425513,-304.22649843,8.635e-05,2]
[332910465,1721676425538,-304.22649843,8.722e-05,2]
[332910466,1721676425565,-420.0,8.863e-05,2]
[332910467,1721676425588,-420.0,8.863e-05,2]
[332910468,1721676425609,-413.0175772,8.888e-05,2]
[332910469,1721676425630,-350.0,8.888e-05,2]
[332910470,1721676425653,-2404.05259868,9.027e-05,2]
[332910471,1721676427097,-1313.84497989,9.027e-05,2]
[332910472,1721676444124,-4541.34917007,8.936e-05,2]
[332910473,1721676452135,-273.37336231,8.936e-05,2]
[332910484,1721676545114,-2383.6753345,8.038e-05,2]
[332910485,1721676545141,-300.0,8.534e-05,2]
[332910486,1721676545166,-12413.0126655,8.535e-05,2]
[332910489,1721676554108,-347919.18,8.535e-05,2]
[332910494,1721676561093,-114158.42570335,8.535e-05,2]
[332910495,1721676570208,-284777.04735306,8.535e-05,2]
[332910528,1721676632652,-600.0,8.449e-05,2]
[332910529,1721676632662,-300.0,8.534e-05,2]
[332910530,1721676632673,-300.0,8.534e-05,2]
[332910531,1721676632683,-1416.34122505,8.535e-05,2]
[332910565,1721676638876,-12466.42191502,8.535e-05,2]
[332910566,1721676638889,-5560.16291802,8.535e-05,2]
[332910567,1721676638899,-1625.46116471,8.535e-05,2]
[332910568,1721676638909,-4707.01308214,8.535e-05,2]
[332910569,1721676638919,-3781.68915549,8.535e-05,2]
[332910570,1721676638931,-218.75120258,8.535e-05,2]
[332910571,1721676638941,-154.71377951,8.535e-05,2]
[332910572,1721676638950,-154.86316634,8.535e-05,2]
[332910573,1721676638960,-250.0,8.91e-05,2]
[332910574,1721676638969,-250.0,8.934e-05,2]
[332910575,1721676638979,-250.0,8.959e-05,2]
[332910576,1721676638988,-250.0,8.983e-05,2]
[332910577,1721676639001,-250.0,9.008e-05,2]
[332910578,1721676639010,-20682.10242143,9.027e-05,2]
[332910579,1721676639019,-250.0,9.032e-05,2]
[332910580,1721676639029,-250.0,9.056e-05,2]
[332910581,1721676639039,-250.0,9.081e-05,2]
[332910582,1721676639049,-250.0,9.105e-05,2]
[332910583,1721676639059,-250.0,9.13e-05,2]
[332910584,1721676639068,-250.0,9.154e-05,2]
[332910585,1721676639077,-250.0,9.179e-05,2]
[332910586,1721676639264,-250.0,9.203e-05,2]
[332910587,1721676639281,-250.0,9.228e-05,2]
[332910588,1721676639290,-250.0,9.252e-05,2]
[332910589,1721676639300,-250.0,9.276e-05,2]
[332910590,1721676639310,-250.0,9.301e-05,2]
[332910591,1721676639319,-250.0,9.325e-05,2]
[332910592,1721676639329,-250.0,9.35e-05,2]
[332910593,1721676639339,-250.0,9.374e-05,2]
[332910594,1721676639348,-420.0,9.387e-05,2]
[332910595,1721676639359,-18456.44425394,9.626e-05,2]
[332910596,1721676639369,-191.39765408,9.626e-05,2]
[332910597,1721676639379,-836.47817623,9.998e-05,2]
[332910598,1721676639388,-609.46798961,9.999e-05,2]
[332910599,1721676639398,-518.42535853,9.999e-05,2]
[332910600,1721676639408,-303.15021771,9.999e-05,2]
[332910601,1721676639418,-654.28953963,9.999e-05,2]
[332910602,1721676639428,-567.81677591,9.999e-05,2]
[332910603,1721676639438,-848.26931223,9.999e-05,2]
[332910604,1721676639447,-154.76012181,9.999e-05,2]
[332910605,1721676639458,-304.3397691,9.999e-05,2]
[332910606,1721676639468,-778.8042113,9.999e-05,2]
[332910607,1721676639477,-154.71377951,9.999e-05,2]
[332910608,1721676639488,-154.71377951,9.999e-05,2]
[332910609,1721676639497,-154.71377951,9.999e-05,2]
[332910610,1721676639508,-805.48179283,9.999e-05,2]
[332910611,1721676639521,-403.29212142,9.999e-05,2]
[332910612,1721676639532,-154.80649189,9.999e-05,2]
[332910613,1721676639542,-413.45473308,9.999e-05,2]
[332910614,1721676639553,-154.71377951,9.999e-05,2]
[332910615,1721676639562,-240.53771664,9.999e-05,2]
[332910616,1721676639572,-341.63558766,9.999e-05,2]
[332910617,1721676639583,-155.71996656,9.999e-05,2]
[332910618,1721676639594,-154.71377951,9.999e-05,2]
[332910619,1721676639604,-266.45562097,9.999e-05,2]
[332910620,1721676639614,-256.86082611,9.999e-05,2]
[332910621,1721676639624,-521.42104027,9.999e-05,2]
[332910622,1721676639635,-165.89474144,9.999e-05,2]
[332910623,1721676639646,-154.80649189,9.999e-05,2]
[332910624,1721676639656,-300.53555783,9.999e-05,2]
[332910625,1721676639666,-309.06726427,9.999e-05,2]
[332910626,1721676639675,-154.71377951,9.999e-05,2]
[332910627,1721676639685,-154.77557542,9.999e-05,2]
[332910628,1721676639695,-600.19386734,9.999e-05,2]
[332910629,1721676639707,-156.56045866,9.999e-05,2]
[332910630,1721676639717,-542.48310742,9.999e-05,2]
[332910631,1721676639726,-941.58882029,9.999e-05,2]
[332910632,1721676639736,-350.74073314,9.999e-05,2]
[332910633,1721676639746,-154.76012181,9.999e-05,2]
[332910634,1721676639755,-154.71377951,9.999e-05,2]
[332910635,1721676639766,-154.79103211,9.999e-05,2]
[332910636,1721676639777,-533.33376978,9.999e-05,2]
[332910637,1721676639787,-154.72922386,9.999e-05,2]
[332910638,1721676639797,-188.02900327,9.999e-05,2]
[332910639,1721676639807,-250.34989462,9.999e-05,2]
[332910640,1721676639817,-154.71377951,9.999e-05,2]
[332910641,1721676639827,-154.71377951,9.999e-05,2]
[332910642,1721676639836,-238.16633901,9.999e-05,2]
[332910643,1721676639846,-248.81385722,9.999e-05,2]
[332910644,1721676639855,-319.37459379,9.999e-05,2]
[332910645,1721676639864,-346.24214689,9.999e-05,2]
[332910646,1721676639874,-157.11131447,9.999e-05,2]
[332910647,1721676639883,-202.01476305,9.999e-05,2]
[332910648,1721676639893,-201.39652507,9.999e-05,2]
[332910649,1721676639903,-208.54118651,9.999e-05,2]
[332910650,1721676639913,-154.71377951,9.999e-05,2]
[332910651,1721676639923,-154.71377951,9.999e-05,2]
[332910652,1721676639934,-154.79103211,9.999e-05,2]
[332910653,1721676639944,-531.29167136,9.999e-05,2]
[332910654,1721676639959,-209.63850314,9.999e-05,2]
[332910655,1721676639968,-154.71377951,9.999e-05,2]
[332910656,1721676639979,-154.81963389,9.999e-05,2]
[332910657,1721676639991,-162.87421769,9.999e-05,2]
[332910658,1721676640000,-375.60784238,9.999e-05,2]
[332910659,1721676640009,-180.28036357,9.999e-05,2]
[332910661,1721676640018,-154.90090718,9.999e-05,2]
[332910662,1721676640028,-154.71377951,9.999e-05,2]
[332910663,1721676640037,-200.0,9.999e-05,2]
[332910664,1721676640047,-204.44983512,9.999e-05,2]
[332910665,1721676640057,-154.71377951,9.999e-05,2]
[332910666,1721676640067,-154.71377951,9.999e-05,2]
[332910667,1721676640076,-155.37561184,9.999e-05,2]
[332910668,1721676640085,-404.3074502,9.999e-05,2]
[332910669,1721676640096,-182.72422577,9.999e-05,2]
[332910670,1721676640106,-671.05002233,9.999e-05,2]
[332910671,1721676640116,-726.7153245,9.999e-05,2]
[332910672,1721676640126,-159.99048305,9.999e-05,2]
[332910673,1721676640137,-159.80847068,9.999e-05,2]
[332910674,1721676640147,-154.80649189,9.999e-05,2]
[332910675,1721676640156,-196.25173321,9.999e-05,2]
[332910676,1721676640167,-154.71377951,9.999e-05,2]
[332910677,1721676640177,-154.71377951,9.999e-05,2]
[332910678,1721676640187,-251.95958056,9.999e-05,2]
[332910679,1721676640196,-154.80649189,9.999e-05,2]
[332910680,1721676640213,-493.6852174,9.999e-05,2]
[332910681,1721676640223,-154.71377951,9.999e-05,2]
[332910682,1721676640233,-383758.86735765,9.999e-05,2]
[332910683,1721676640243,-204.43824148,0.0001,2]
[332910684,1721676640253,-200.49851956,0.0001,2]
[332910685,1721676640262,-154.71377951,0.0001,2]
[332910686,1721676640272,-287.45478261,0.0001,2]
[332910687,1721676640281,-994.32496375,0.0001,2]
[332910688,1721676640292,-17849.73677924,0.0001,2]
[332910689,1721676640302,-267.15916393,0.0001,2]
[332910690,1721676640313,-587.0,0.00010326,2]
[332910691,1721676640322,-17849.73677923,0.00010378,2]
[332910692,1721676640331,-17849.73677923,0.00010857,2]
[332910693,1721676640341,-339.08,0.00010959,2]
[332910694,1721676640352,-3028.93,0.00010959,2]
[332910695,1721676640361,-2524.11,0.00010959,2]
[332910696,1721676640371,-2103.43,0.00010959,2]
[332910697,1721676640380,-1752.86,0.00010959,2]
[332910698,1721676640390,-1460.71,0.00010959,2]
[332910699,1721676640400,-1217.26,0.00010959,2]
[332910700,1721676640410,-1014.38,0.00010959,2]
[332910701,1721676640419,-845.32,0.00010959,2]
[332910702,1721676640428,-17849.73677923,0.00011335,2]
[332910703,1721676640438,-823.0,0.00011359,2]
[332910704,1721676640448,-17849.73677923,0.00011813,2]
[332910705,1721676640464,-360573.711686,0.000119,2]
[332910706,1721676640474,-210712.37669779,0.00012,2]
[332910707,1721676640484,-821.0,0.00012495,2]
[332910708,1721676640493,-200.0,0.00013425,2]
[332910709,1721676640503,-526.84583493,0.000136,2]
[332910710,1721676640517,-397.25645957,0.000136,2]
[332910711,1721676640528,-500.0,0.00013698,2]
[332910712,1721676640538,-500.0,0.00013698,2]
[332910713,1721676640548,-500.0,0.00013698,2]
[332910714,1721676640558,-500.0,0.00013698,2]
[332910715,1721676640568,-500.0,0.00013698,2]
[332910716,1721676640578,-524.75018145,0.00013698,2]
[332910717,1721676640588,-500.0,0.00013698,2]
[332910718,1721676640597,-503.59785011,0.00013698,2]
[332910719,1721676640607,-152.01,0.00013698,2]
[332910720,1721676640616,-417.62,0.00013698,2]
[332910721,1721676640626,-318.39,0.00013698,2]
[332910722,1721676640635,-500.0,0.00013698,2]
[332910723,1721676640644,-500.0,0.00013698,2]
[332910724,1721676640654,-511.08765876,0.00013698,2]
[332910725,1721676640664,-500.0,0.00013698,2]
[332910726,1721676640674,-500.0,0.00013698,2]
[332910727,1721676640684,-500.0,0.00013698,2]
[332910728,1721676640693,-500.0,0.00013698,2]
[332910729,1721676640710,-500.0,0.00013698,2]
[332910730,1721676640719,-500.0,0.00013698,2]
[332910731,1721676640730,-500.0,0.00013698,2]
[332910732,1721676640740,-500.0,0.00013698,2]
[332910733,1721676640751,-500.0,0.00013698,2]
[332910734,1721676640761,-502.95930397,0.00013698,2]
[332910735,1721676640770,-500.0,0.00013698,2]
[332910736,1721676640782,-500.0,0.00013698,2]
[332910737,1721676640791,-535.93,0.00013698,2]
[332910738,1721676640800,-646.89391767,0.00013698,2]
[332910739,1721676640811,-613.50607496,0.00013698,2]
[332910740,1721676640822,-619.68,0.00013698,2]
[332910741,1721676640832,-500.0,0.00013698,2]
[332910742,1721676640841,-503.54918777,0.00013698,2]
[332910743,1721676640852,-500.0,0.00013698,2]
[332910744,1721676640862,-500.0,0.00013698,2]
[332910745,1721676640871,-266.44,0.00013698,2]
[332910746,1721676640881,-500.0,0.00013698,2]
[332910747,1721676640891,-500.0,0.00013698,2]
[332910748,1721676640901,-500.0,0.00013698,2]
[332910749,1721676640911,-500.0,0.00013698,2]
[332910750,1721676640920,-500.0,0.00013698,2]
[332910751,1721676640930,-500.0,0.00013698,2]
[332910752,1721676640940,-500.0,0.00013698,2]
[332910753,1721676640952,-500.0,0.00013698,2]
[332910754,1721676640962,-500.0,0.00013698,2]
[332910755,1721676640973,-500.0,0.00013698,2]
[332910756,1721676640983,-500.0,0.00013698,2]
[332910757,1721676640992,-847.83,0.00013698,2]
[332910758,1721676641002,-500.0,0.00013698,2]
[332910759,1721676641011,-500.0,0.00013698,2]
[332910760,1721676641020,-500.0,0.00013698,2]
[332910761,1721676641030,-500.0,0.00013698,2]
[332910762,1721676641039,-500.0,0.00013698,2]
[332910763,1721676641049,-500.0,0.00013698,2]
[332910764,1721676641058,-500.0,0.00013698,2]
[332910765,1721676641068,-242.83089486,0.00013698,2]
[332910766,1721676641078,-500.0,0.00013698,2]
[332910767,1721676641087,-500.0,0.00013698,2]
[332910768,1721676641098,-500.0,0.00013698,2]
[332910769,1721676641107,-500.0,0.00013698,2]
[332910770,1721676641117,-500.0,0.00013698,2]
[332910772,1721676641128,-1737.53,0.00013698,2]
[332910774,1721676641138,-503.64069599,0.00013698,2]
[332910776,1721676641147,-500.0,0.00013698,2]
[332910778,1721676641157,-648.14,0.00013698,2]
[332910779,1721676641167,-493.75174484,0.00013698,2]
[332910780,1721676641177,-500.0,0.00013698,2]
[332910781,1721676641187,-500.0,0.00013698,2]
[332910782,1721676641197,-500.0,0.00013698,2]
[332910783,1721676641210,-571.31407726,0.00013698,2]
[332910784,1721676641220,-500.0,0.00013698,2]
[332910785,1721676641229,-500.0,0.00013698,2]
[332910786,1721676641238,-500.0,0.00013698,2]
[332910787,1721676641248,-503.5645159,0.00013698,2]
[332910788,1721676641258,-500.0,0.00013698,2]
[332910789,1721676641267,-528.67669487,0.00013698,2]
[332910790,1721676641277,-500.0,0.00013698,2]
[332910791,1721676641286,-500.0,0.00013698,2]
[332910792,1721676641296,-500.0,0.00013698,2]
[332910793,1721676641306,-500.0,0.00013698,2]
[332910794,1721676641315,-500.0,0.00013698,2]
[332910795,1721676641325,-516.26409766,0.00013698,2]
[332910796,1721676641334,-476.28410891,0.00013698,2]
[332910797,1721676641343,-500.0,0.00013698,2]
[332910798,1721676641353,-500.0,0.00013698,2]
[332910799,1721676641363,-500.0,0.00013698,2]
[332910800,1721676641373,-500.0,0.00013698,2]
[332910801,1721676641383,-614.25703442,0.00013698,2]
[332910802,1721676641393,-500.0,0.00013698,2]
[332910803,1721676641402,-502.68517717,0.00013698,2]
[332910804,1721676641411,-500.0,0.00013698,2]
[332910805,1721676641421,-500.0,0.00013698,2]
[332910806,1721676641431,-500.0,0.00013698,2]
[332910807,1721676641440,-500.0,0.00013698,2]
[332910808,1721676641451,-500.0,0.00013698,2]
[332910809,1721676641465,-500.0,0.00013698,2]
[332910810,1721676641475,-502.50291833,0.00013698,2]
[332910811,1721676641485,-500.0,0.00013698,2]
[332910812,1721676641498,-500.0,0.00013698,2]
[332910813,1721676641508,-500.0,0.00013698,2]
[332910814,1721676641522,-504.86,0.00013698,2]
[332910815,1721676641531,-500.0,0.00013698,2]
[332910816,1721676641541,-579.86,0.00013698,2]
[332910817,1721676641550,-500.0,0.00013698,2]
[332910818,1721676641561,-500.0,0.00013698,2]
[332910819,1721676641570,-500.0,0.00013698,2]
[332910820,1721676641579,-500.0,0.00013698,2]
[332910821,1721676641592,-500.0,0.00013698,2]
[332910822,1721676641601,-500.0,0.00013698,2]
[332910823,1721676641611,-3686.48,0.00013698,2]
[332910824,1721676641621,-500.0,0.00013698,2]
[332910825,1721676641630,-500.0,0.00013698,2]
[332910826,1721676641639,-500.0,0.00013698,2]
[332910827,1721676641649,-500.0,0.00013698,2]
[332910828,1721676641658,-252.80784773,0.00013698,2]
[332910829,1721676641667,-500.0,0.00013698,2]
[332910830,1721676641677,-500.0,0.00013698,2]
[332910831,1721676641686,-500.0,0.00013698,2]
[332910832,1721676641695,-559.28,0.00013698,2]
[332910833,1721676641708,-500.0,0.00013698,2]
[332910834,1721676641718,-500.0,0.00013698,2]
[332910835,1721676641728,-500.0,0.00013698,2]
[332910836,1721676641737,-500.0,0.00013698,2]
[332910837,1721676641747,-500.0,0.00013698,2]
[332910838,1721676641756,-500.0,0.00013698,2]
[332910839,1721676641766,-505.12,0.00013698,2]
[332910840,1721676641775,-589.48,0.00013698,2]
[332910841,1721676641783,-500.0,0.00013698,2]
[332910842,1721676641792,-500.0,0.00013698,2]
[332910843,1721676641801,-554.94,0.00013698,2]
[332910844,1721676641810,-520.37494178,0.00013698,2]
[332910845,1721676641819,-505.61133356,0.00013698,2]
[332910846,1721676641829,-500.0,0.00013698,2]
[332910847,1721676641838,-521.74,0.00013698,2]
[332910848,1721676641847,-500.0,0.00013698,2]
[332910849,1721676641856,-500.0,0.00013698,2]
[332910850,1721676641865,-608.09084378,0.00013698,2]
[332910851,1721676641874,-500.0,0.00013698,2]
[332910852,1721676641884,-500.0,0.00013698,2]
[332910853,1721676641893,-500.0,0.00013698,2]
[332910854,1721676641902,-500.0,0.00013698,2]
[332910855,1721676641911,-500.0,0.00013698,2]
[332910856,1721676641921,-500.0,0.00013698,2]
[332910857,1721676641930,-552.84,0.00013698,2]
[332910858,1721676641941,-379.82309372,0.00013698,2]
[332910859,1721676641955,-500.0,0.00013698,2]
[332910860,1721676641965,-500.0,0.00013698,2]
[332910861,1721676641978,-500.0,0.00013698,2]
[332910862,1721676641989,-503.3907054,0.00013698,2]
[332910863,1721676642000,-406.3,0.00013698,2]
[332910864,1721676642010,-307.24,0.00013698,2]
[332910865,1721676642019,-500.0,0.00013698,2]
[332910866,1721676642029,-500.0,0.00013698,2]
[332910867,1721676642040,-500.0,0.00013698,2]
[332910868,1721676642050,-500.0,0.00013698,2]
[332910869,1721676642059,-226.4877244,0.00013698,2]
[332910870,1721676642069,-506.13,0.00013698,2]
[332910871,1721676642079,-519.25,0.00013698,2]
[332910872,1721676642088,-500.0,0.00013698,2]
[332910873,1721676642097,-500.0,0.00013698,2]
[332910874,1721676642107,-503.89243339,0.00013698,2]
[332910875,1721676642116,-500.0,0.00013698,2]